Cogmind - Beta 10.2 @@@ ROGUE MODE // 2021.07.11 @ 18:35:58 Player: Burgers_Lettuce Result: Destroyed by G-47 Trooper with Particle Gun Performance ------------- Evolutions (2) 1000 Regions Visited (3) 600 Robots Destroyed (80) 400 Value Destroyed (2416) 2416 Prototype IDs (2) 40 Alien Tech Used (0) 0 Bonus (374) 374 TOTAL SCORE: 4830 Bonus ------- High Alert Combat Kills 374 Cogmind --------- Core Integrity 0/550 Matter 56/300 Energy 100/100 System Corruption 2% Temperature Cool (9) Movement Treading (170) Location -8/Materials Parts ------- > --- POWER (1) -------- (None) > --- PROPULSION (4) --- Armored Treads > --- UTILITY (2) ------ (None) > --- WEAPON (4) ------- (None) > --- INVENTORY (4) ---- Weight Redist. System Visual Processing Unit Spread Laser Assault Cannon Peak State ------------ > --- POWER ------------ Light Deuterium Engine > --- PROPULSION ------- Medium Treads Medium Treads Medium Treads > --- UTILITY ---------- Medium Storage Unit > --- WEAPON ----------- Proton Missile Launcher Proton Missile Launcher Proton Missile Launcher Proton Missile Launcher > --- INVENTORY -------- Improved Ion Engine Weight Redist. System Visual Processing Unit Light Armor Plating Hardened Light Armor Plating Spread Laser Improved Assault Rifle Assault Cannon [Rating: 33] Favorites ----------- Power Light Ion Engine Engine Light Ion Engine Propulsion Aluminum Leg Treads Medium Treads Leg Aluminum Leg Wheel Wheel Utility Medium Storage Unit Device Heat Sink Storage Medium Storage Unit Protection Hardened Light Armor Plating Weapon Autogun Energy Gun Spread Laser Energy Cannon Particle Cannon Ballistic Gun Autogun Ballistic Cannon Assault Cannon Launcher Grenade Launcher Build | -11 -10 -9 -8 ------- Run | Scr Mat Mat Mat Slots Evolved 4 | . . 2 2 Power . | . . . . Propulsion 2 | . . 1 1 Utility . | . . . . Weapon 2 | . . 1 1 Parts Attached 79 | 5 15 33 26 Power 11 | 1 1 8 1 Engine 11 | 1 1 8 1 Core . | . . . . Reactor . | . . . . Propulsion 24 | 2 4 9 9 Treads 6 | . . 1 5 Leg 17 | 2 4 8 3 Wheel 1 | . . . 1 Hover . | . . . . Flight . | . . . . Utility 10 | . 6 2 2 Device 1 | . . . 1 Storage 3 | . 3 . . Processor . | . . . . Hackware . | . . . . Protection 6 | . 3 2 1 Artifact . | . . . . Weapon 34 | 2 4 14 14 Energy Gun 9 | 1 2 4 2 Energy Cannon 1 | . . 1 . Ballistic Gun 12 | 1 2 5 4 Ballistic Cannon 2 | . . . 2 Launcher 10 | . . 4 6 Special Weapon . | . . . . Impact Weapon . | . . . . Slashing Weapon . | . . . . Piercing Weapon . | . . . . Special Melee Weapon . | . . . . Unidentified Prototypes 2 | . . 2 . Parts Lost 21 | . 1 2 18 Power 2 | . . 1 1 Propulsion 7 | . . . 7 Utility 3 | . . 1 2 Weapon 9 | . 1 . 8 Highest Loss Streak 7 | . 1 1 7 Average Slot Usage (%) 94 | . 96 98 79 Engine 11 | . 14 11 7 Treads 2 | . . 1 8 Leg 27 | . 28 30 19 Storage 11 | . 12 11 9 Protection 10 | . 12 10 4 Energy Gun 11 | . 17 9 5 Ballistic Gun 15 | . 10 19 13 Launcher 2 | . . 2 5 Naked Turns . | . . . . Heaviest Build 43 | 6 21 32 43 Greatest Support 84 | 20 20 30 84 Greatest Overweight (x) 4 | . 1 1 4 Average Overweight (x) . | . . . . Largest Inventory Capacity 8 | 4 8 8 8 Average Capacity 7 | 4 5 8 7 Most Carried 8 | 4 8 8 8 Average Carried 6 | 2 5 7 7 Final Capacity 8 | 4 8 8 4 Final Carried 8 | 4 8 8 4 Class Distribution -------------------- 51% | Mutant 26% | Tank 16% | Scavenger-Tank 4% | Gunner Dominant Class ---------------- Mutant | -10/Materials Tank | -9/Materials Scavenger-Tank | -8/Materials Resources | -11 -10 -9 -8 ----------- Run | Scr Mat Mat Mat Matter Collected 1697 | 242 159 895 401 Remotely . | . . . . Salvage Created 2581 | . 314 1082 1185 Parts 162 | . 21 78 63 Haulers Intercepted 1 | . . 1 . Recyclers Shooed 2 | . . . 2 Parts Field Recycled . | . . . . Retrieved Matter . | . . . . Parts Self-Destructed . | . . . . Prevented . | . . . . Kills | -11 -10 -9 -8 ------- Run | Scr Mat Mat Mat Combat Hostiles Destroyed 61 | . 7 30 24 Melee 1 | . . . 1 Guns 34 | . 5 21 8 Cannons 8 | . . 3 5 AOE 17 | . 2 6 9 Classes Destroyed 11 | . 3 6 2 Builder 7 | . . 3 4 Tunneler 1 | . . 1 . Hauler 1 | . . 1 . Recycler 4 | . . 1 3 Watcher 6 | . 3 3 . Swarmer 15 | . 2 11 2 Grunt 35 | . 5 12 18 Brawler 2 | . . 1 1 Duelist 1 | . . . 1 Protector 1 | . . . 1 Sentry 7 | . . 6 1 Best Kill Streak 9 | . 2 7 9 Combat Bots Only 5 | . 2 5 5 Max Kills in Single Turn 4 | . 1 2 4 Gunslinging . | . . . . Exploded 3 | . 1 2 3 Melee 1 | . . . 1 Uniques/NPCs Destroyed . | . . . . Combat | -11 -10 -9 -8 -------- Run | Scr Mat Mat Mat Damage Taken 4233 | . 303 1025 2905 Core 754 | . 80 121 553 Absorbed by Shields . | . . . . Core Remaining (%) 79 | 100 68 69 . Volleys Fired 129 | . 25 63 41 Largest 4 | . 2 3 4 Hottest 177 | . 90 150 177 Shots Fired 337 | . 50 175 112 Gun 284 | . 50 155 79 Cannon 32 | . . 9 23 Launcher 21 | . . 11 10 Special . | . . . . Kinetic 210 | . 21 108 81 Thermal 91 | . 22 56 13 Explosive 11 | . . 11 . Electromagnetic 25 | . 7 . 18 Robot Hit Streak 14 | . 11 11 14 Robot Miss Streak 6 | . 4 4 6 Penetration Max . | . . . . Secondary Targets 2 | . . 1 1 Max Gunslinging Chain 1 | . . 1 1 Shots Hit Robots 213 | . 30 111 72 Core Hits 158 | . 17 73 68 Critical Hits 3 | . . . 3 Critical Kills 2 | . . . 2 Critical Parts Destroyed 1 | . . . 1 Melee Attacks . | . . . . Impact . | . . . . Slashing . | . . . . Piercing . | . . . . Sneak Attacks . | . . . . Combat Hostiles . | . . . . Follow-up Attacks . | . . . . Damage Inflicted 5500 | . 461 2139 2900 Guns 2543 | . 394 1298 851 Cannons 437 | . . 102 335 Explosions 2510 | . 67 739 1704 Melee . | . . . . Ramming 10 | . . . 10 Kinetic 1966 | . 149 873 944 Thermal 2126 | . 262 527 1337 Explosive 703 | . . 703 . Electromagnetic 695 | . 50 36 609 Impact . | . . . . Slashing . | . . . . Piercing . | . . . . Highest Corruption 2 | . . . 2 Average Corruption 1 | . . . 1 Corruption Purged . | . . . . Effects 2 | . . . 2 Message Errors 1 | . . . 1 Targeting Errors 1 | . . . 1 Overload Shots . | . . . . Overflow Damage 268 | . . 17 251 Projectiles . | . . . . Explosions 268 | . . 17 251 Melee . | . . . . Knockbacks 3 | . . . 3 Impact . | . . . . Kinetic 3 | . . . 3 Secondary . | . . . . Self-Inflicted Damage 278 | . 70 110 98 Shots 9 | . 2 3 4 Rammed 3 | . . . 3 Targets Rammed 4 | . . . 4 Kicked . | . . . . Crushed 1 | . . . 1 Highest Temperature 660 | . 114 486 660 Average Temperature 131 | . 37 118 214 Received Heat Transfer 1443 | . 105 276 1062 Effects 28 | . . 9 19 Shutdowns 5 | . . 2 3 Energy Bleed 4 | . . 3 1 Interference 6 | . . 1 5 Matter Decay 3 | . . . 3 Short Circuit 4 | . . . 4 Damage (minor) 1 | . . . 1 Damage (major) 4 | . . 3 1 Damage (core) 1 | . . . 1 Siege Activations . | . . . . Robots Corrupted 1 | . . . 1 Combat Hostiles 1 | . . . 1 Parts Fried 2 | . 1 . 1 Impact Corruptions . | . . . . Robots Melted . | . . . . Combat Hostiles . | . . . . Parts Melted 1 | . 1 . . Heat Transferred 2744 | . 643 961 1140 Parts Sabotaged . | . . . . Parts Stolen . | . . . . Parts Stripped . | . . . . Power Chain Reactions 6 | . 2 . 4 Missiles Intercepted . | . . . . Alert | -11 -10 -9 -8 ------- Run | Scr Mat Mat Mat Peak Influence 967 | . 211 587 967 Initial 247 | . . 42 247 Average 274 | . 100 299 556 Maximum Alert Level 3 | . 1 2 3 Low Security (%) 47 | 100 85 36 . Level 1 25 | . 14 28 37 Level 2 20 | . . 34 23 Level 3 7 | . . . 38 Level 4 . | . . . . Level 5 . | . . . . High Security . | . . . . Max Security . | . . . . Squads Dispatched 18 | . 3 4 11 Investigation 8 | . 3 3 2 Extermination . | . . . . Reinforcement 6 | . . 1 5 Assault 2 | . . . 2 Garrison 2 | . . . 2 Intercept . | . . . . Construction Impeded 2 | . . . 2 Haulers Reinforced . | . . . . Stealth | -11 -10 -9 -8 --------- Run | Scr Mat Mat Mat Distress Signals 4 | . 1 1 2 Communications Jammed . | . . . . Distress Signals . | . . . . Times Spotted 105 | . 16 40 49 Peak Tracking Total 12 | . 3 5 12 Tactical Retreats 10 | . 3 3 4 Traps | -11 -10 -9 -8 ------- Run | Scr Mat Mat Mat Traps Triggered 3 | . 1 . 2 Indirectly 2 | . . . 2 Trap Hack Attempts . | . . . . Triggered . | . . . . Disarmed . | . . . . Reprogrammed . | . . . . Reused . | . . . . Traps Extracted . | . . . . Installed . | . . . . Triggered 1 | . . . 1 Machines | -11 -10 -9 -8 ---------- Run | Scr Mat Mat Mat Machines Disabled 11 | . 1 4 6 Max in Single Turn 3 | . 1 2 3 Garrison Access 1 | . . . 1 Machines Sabotaged . | . . . . Garrisons Compromised . | . . . . Overloaded Fab Kills . | . . . . Fab Network Shutdowns . | . . . . Hacking | -11 -10 -9 -8 --------- Run | Scr Mat Mat Mat Machines Accessed 14 | . 8 5 1 Terminals 10 | . 6 4 . Fabricators . | . . . . Repair Stations 2 | . 1 . 1 Recycling Units 2 | . 1 1 . Scanalyzers . | . . . . Garrison Access . | . . . . Total Hacks 37 | . 20 11 6 Successful 15 | . 9 3 3 Failed 22 | . 11 8 3 Catastrophic 4 | . 2 2 . Database Lockouts . | . . . . Manual 30 | . 18 12 . Terminals 27 | . 17 10 . Fabricators . | . . . . Repair Stations 7 | . 1 . 6 Recycling Units 3 | . 2 1 . Scanalyzers . | . . . . Garrison Access . | . . . . Terminal Hacks 2 | . 2 . . Alert Level 2 | . 2 . . Fabricator Hacks . | . . . . Repair Station Hacks 3 | . . . 3 Scan Component 2 | . . . 2 Repair 1 | . . . 1 Recycling Unit Hacks 1 | . 1 . . Report Inventory 1 | . 1 . . Scanalyzer . | . . . . Garrison Access Hacks . | . . . . Unauthorized Hacks 9 | . 6 3 . Terminals 7 | . 5 2 . Botnet 6 | . 4 2 . Operators 1 | . 1 . . Fabricators . | . . . . Repair Stations . | . . . . Recycling Units 2 | . 1 1 . Tunnel 2 | . 1 1 . Scanalyzers . | . . . . Garrison Access . | . . . . Data Cores Recovered . | . . . . Used . | . . . . Hacking Detections 12 | . 7 4 1 Full Trace Events 8 | . 5 2 1 Feedback Events . | . . . . Feedback Blocked . | . . . . Robot Schematics Acquired . | . . . . Robots Built . | . . . . Matter . | . . . . Time . | . . . . Total Robot Build Rating . | . . . . Part Schematics Acquired . | . . . . Parts Built . | . . . . Matter . | . . . . Time . | . . . . Total Part Build Rating . | . . . . Parts Repaired 1 | . . . 1 Time 26 | . . . 26 Parts Recycled . | . . . . Recycled Matter . | . . . . Retrieved Matter . | . . . . Retrieved Components . | . . . . Parts Scanalyzed . | . . . . Part Schematics Acquired . | . . . . Parts Damaged . | . . . . Bothacking | -11 -10 -9 -8 ------------ Run | Scr Mat Mat Mat Used RIF Installer . | . . . . Robots Hacked . | . . . . Non-combat . | . . . . Combat . | . . . . Robot Hacks Applied . | . . . . Relay Couplers Released 1 | . . . 1 Machine Destruction 1 | . . . 1 Robots Rewired . | . . . . Allies Hacked . | . . . . Hacks Repelled . | . . . . Allies | -11 -10 -9 -8 -------- Run | Scr Mat Mat Mat Total Allies . | . . . . Largest Group . | . . . . Highest-Rated Group . | . . . . Highest-Rated Ally . | . . . . Total Orders . | . . . . Ally Attacks . | . . . . Total Damage . | . . . . Kills . | . . . . Allies Corrupted . | . . . . Allies Melted . | . . . . Intel | -11 -10 -9 -8 ------- Run | Scr Mat Mat Mat Robot Analysis Total . | . . . . Derelict Logs Recovered . | . . . . Drone Launches . | . . . . Drone Recoveries . | . . . . Exploration | -11 -10 -9 -8 ------------- Run | Scr Mat Mat Mat Turns Passed 3138 | 74 1047 1426 591 Spaces Moved 1441 | 54 543 648 196 Core 2 | 2 . . . Treads 47 | . . . 47 Legs 1323 | 52 543 648 80 Wheels 69 | . . . 69 Hover . | . . . . Flight . | . . . . Fastest Speed 50 | 50 120 120 80 Average Speed 125 | 117 124 128 120 Slowest Speed 240 | 120 150 150 240 Overloaded Moves . | . . . . Propulsion Burnouts . | . . . . Robots Hopped . | . . . . Cave-ins Triggered . | . . . . Exploration Rate (%) 39 | 3 71 54 28 Regions Visited 3 Branch Regions . Pre-discovered Areas 2 | . 1 1 . Known Exits Taken . | . . . . Unknown Exits Taken 3 | 1 1 1 . Scrap Searched . | . . . . Spaces Dug . | . . . . Terrain Destroyed 147 | . 8 85 54 Melee . | . . . . Projectile 3 | . . . 3 AOE 144 | . 8 85 51 Terrain Rammed . | . . . . Walls Destroyed . | . . . . Machines Disabled . | . . . . Actions | -11 -10 -9 -8 --------- Run | Scr Mat Mat Mat Total 2521 | 62 867 1127 465 Wait 803 | . 263 353 187 Move 1438 | 53 542 647 196 Hop . | . . . . Pick Up 18 | 4 9 4 1 Fast Attach 35 | 5 4 10 16 Attach 10 | . 2 2 6 Detach 7 | . . 3 4 Swap 34 | . 9 21 4 Drop 43 | . 13 24 6 Fire 129 | . 25 63 41 Melee . | . . . . Ram . | . . . . Kick . | . . . . Crush 4 | . . . 4 Escape Stasis . | . . . . Rewire . | . . . . Trap . | . . . . Miscellaneous . | . . . . Route ------- -11/Scrapyard -10/Materials (discovered 3 exits: *Mat x2 / [*Min]) -9/Materials (discovered 2 exits: *Mat / [*Min]) -8/Materials History --------- Turn | Location | Event 5 | -11/Scrapyard | Discovered new exit (range 15) 75 | -11/Scrapyard | Entered Materials 189 | -10/Materials | Discovered new exit (range 16) 307 | -10/Materials | Build established: Mutant 630 | -10/Materials | Discovered new exit (range 10) 1110 | -10/Materials | Discovered new exit (range 4) 1122 | -10/Materials | Entered another Materials area 1122 | -9/Materials | Evolved 2 slots: Propulsion x1, Weapon x1 1693 | -9/Materials | Discovered new exit (range 16) 2281 | -9/Materials | Build established: Tank 2407 | -9/Materials | Discovered new exit (range 13) 2548 | -9/Materials | Entered another Materials area 2548 | -8/Materials | Evolved 2 slots: Propulsion x1, Weapon x1 2729 | -8/Materials | Garrison activated, responded to threat 2758 | -8/Materials | Build established: Scavenger-Tank 2844 | -8/Materials | Repaired Lgt. Armor Plating 2931 | -8/Materials | Lost 4 parts (2n1u1w) 2948 | -8/Materials | First assault squad dispatched 3009 | -8/Materials | Core integrity fell below 50% 3037 | -8/Materials | Lost 4 parts (1p3w) 3132 | -8/Materials | Core integrity fell below 20% 3139 | -8/Materials | Destroyed by G-47 Trooper with Particle Gun Last Messages --------------- 03110_ Crushed G-47 Trooper. 03110_ G-47 Trooper destroyed. 03111_ Acquired 32 matter. 03112_ Med. Treads destroyed. 03112_ Slammed into G-47 Trooper. 03112_ Slug penetrates Wall. 03113_ Slammed into G-47 Trooper. 03118_ Slug penetrates Wall. 03121_ Imp. Assault Rifle destroyed. 03121_ Slammed into G-47 Trooper. 03122_ Penetrated by Slug. 03127_ Hvy. Assault Rifle destroyed. 03128_ Lgt. Treads destroyed. 03130_ Slug penetrates Y-45 Defender. 03131_ Acquired Arm. Treads. 03131_ Penetrated by Slug. 03134_ Slug penetrates Wall. 03137_ Med. Treads destroyed. 03138_ Med. Storage Unit destroyed. 03139_ Penetrated by Slug. Map ----- +----------------------------------------------------+ | | | | | | | | | | | | | | | | | | | | | | | ?????????????????????????????????????????????????? | | ?????????????????????????????????????????????????? | | ?????????????????????????????????????????????????? | | ?????????????????????????????????????????????????? | | ?????????????????????????????????????????????????? | | ?????????????????????????????????????????????????? | | ?????????????????????????????????????????????????? | | ?????????????????????????????????????????????????? | | ?????????????????????????????????????????????????? | | ???????????????????????????########?############?? | | ???????????????????????????# #?# # #?? | | ???????????????????????????# T / #?# # """" #?? | | ???????????????????????????# #?# %# """" #?? | | ???????????????????????##### ! #?# / """" #?? | | ?????????????????#+#####g@!# * #?# %# #?? | | ???????????? Y g bYhg [ ! *#?# # #?? | | ???????????? g### !h########## ########## | | ????????????#######????##u##???????# ####### | | ????????????????????????#%##???????# | | ????????????????????????#*##???????# T | | ????????????????????????#%#????????# | | ????????????????????????#*#????????# ####### | | ????????????????????????# #????????#######?????## | | ????????????????????????#a#?????????????????????# | | ????????????????????????# #?????????????????????# | | ????????????????????????# #??????????????######## | | ????????????????????????# #??????????????# | | ????????????????????????#m#??????????????# | | ????????????????????????# #??????????????#""" | | ????????????????????????# #??????????????#"Y | | ????????????????????????# ################""" ! | | ????????????????????????# | | ????????????????????????# ##### ! | | ????????????##+########## #??## % | | ????????????# #?### | | ????????????# #?# # | | ????????????+ ^ #?### | | ????????????# #?# # % | | ????????????# #?### ! | +----------------------------------------------------+ Best States ------------- Heat Dissipation 41 Energy Generation 14 Energy Capacity 325 Matter Stores 300 Matter Capacity 300 Sight Range 16 Terrain Scan Density 10 Armor Coverage 225 Power Shielding 33 Evasion (%) 44 Recoil Reduction 3 Item Schematics ----------------- None Robot Schematics ------------------ None Fabricated ------------ Nothing Alien Tech Used ----------------- None Achievements -------------- Quantum Hacking Challenges ------------ None Game ------ Seed SurgeThiefKinecellerator Manual? 0 Play Time 00:44:36 Cumulative 16.5 hours Start 2021.07.11 @ 17:45:22 End 2021.07.11 @ 18:35:58 Sessions 1 Manual Loads 0 Difficulty Rogue Special Mode None Game No. 16 Rogue 16 Adventurer 0 Explorer 0 Win Type - Total 0 Types 0/0/0/0/0/0/0/0/0 Lore% 9 Gallery% 19 Achievement% 19 Wizard Run 0 Options --------- ASCII 0 Keyboard 1 Movement Numpad Keybinds 0 Fullscreen 2 Font 36/X11 Map View 76x50 Tactical HUD 1 Map Filters NONE Filters NONE Steam 1 RUN: 212e7068-9e26-40e9-ac22-79ab87a78d65